bitfinex/quotes_SOLUSD_20240920
["timestamp","ask_amount","ask_price","bid_price","bid_amount"]
[1726806320942,6.8264,146.49,146.45,30.604884]
[1726806321348,6.826,146.5,146.45,30.604884]
[1726806321563,6.8254,146.51,146.47,23.776884]
[1726806321763,17.0559,146.58,146.47,23.776884]
[1726806321968,6.8245,146.54,146.5,23.776884]
[1726806322173,6.8236,146.55,146.51,208.39079334]
[1726806322346,6.8244,146.54,146.51,208.39079334]
[1726806322976,6.8237,146.55,146.51,208.39079334]
[1726806323181,37.9317,146.59,146.52,23.776884]
[1726806323182,17.0549,146.59,146.52,23.776884]
[1726806323474,6.823,146.57,146.52,30.601684]
[1726806323866,32.7163,146.64,146.52,30.601684]
[1726806323867,6.8216,146.6,146.55,6.8232]
[1726806324176,26.1372,146.68,146.57,23.776884]
[1726806324348,26.1372,146.68,146.56,18.42148725]
[1726806324349,26.1372,146.68,146.56,23.88]
[1726806324748,46.6372,146.68,146.56,23.88]
[1726806325055,46.6372,146.68,146.57,6.8225]
[1726806325758,0.12549,146.65,146.57,6.8225]
[1726806325961,0.37647,146.65,146.57,6.8225]
[1726806326508,24.5420294,146.69,146.57,75.46937212]
[1726806326509,0.0941294,146.69,146.57,75.46937212]
[1726806326772,0.0941294,146.69,146.65,47.643084]
[1726806326972,0.0941294,146.69,146.65,49.00645907]
[1726806327178,0.0941294,146.69,146.65,47.643084]
[1726806329752,0.0941294,146.69,146.68,67.763774]
[1726806329971,0.0941294,146.69,146.68,118.014754]
[1726806330348,0.0941294,146.69,146.68,49.00108451]
[1726806330551,0.0941294,146.69,146.68,47.638284]
[1726806330953,0.0301096,146.73,146.68,47.638284]
[1726806331167,0.0301096,146.73,146.69,23.776884]
[1726806331552,0.0301096,146.73,146.69,30.593784]
[1726806331775,6.8453096,146.73,146.69,23.776884]
[1726806332077,0.0301096,146.73,146.69,23.776884]
[1726806332685,0.0301096,146.73,146.65,20.0]
[1726806333067,0.0301096,146.73,146.67,6.8179]
[1726806333274,0.0301096,146.73,146.68,6.8174]
[1726806333589,6.8454096,146.73,146.68,6.8174]
[1726806334290,6.8454096,146.73,146.69,23.776884]
[1726806334591,0.0301096,146.73,146.69,30.593784]
[1726806334764,0.0301096,146.73,146.7,6.8165]
[1726806335667,0.0301096,146.73,146.69,6.817]
[1726806335866,0.0301096,146.73,146.7,23.776884]
[1726806336481,6.8457096,146.73,146.68,23.776884]
[1726806337095,6.8157,146.72,146.68,23.776884]
[1726806337283,6.8159,146.72,146.67,30.594384]
[1726806337584,0.1555996,146.73,146.66,17.0452]
[1726806338166,6.8166,146.7,146.66,17.0452]
[1726806338571,6.8157,146.72,146.66,23.8634]
[1726806339182,6.8162,146.71,146.66,23.8634]
[1726806339393,6.8162,146.71,146.67,23.776884]
[1726806339992,0.0301096,146.73,146.68,6.8171]
[1726806340194,0.0301096,146.73,146.67,23.776884]
[1726806340382,6.8454096,146.73,146.68,6.8175]
[1726806340574,0.0301096,146.73,146.69,30.593884]
[1726806340781,0.0301096,146.73,146.7,30.593384]
[1726806341279,0.0301096,146.73,146.69,23.776884]
[1726806341482,6.8454096,146.73,146.69,23.776884]
[1726806341909,6.8157,146.72,146.68,17.0429]
[1726806342083,6.8161,146.71,146.67,6.8179]
[1726806342281,6.8161,146.71,146.68,23.776884]
[1726806342888,6.8157,146.72,146.68,23.776884]
[1726806343393,6.8161,146.71,146.68,23.776884]
[1726806343796,0.0301096,146.73,146.72,47.631784]
[1726806343994,0.0301096,146.73,146.43,62.14445137]
[1726806343995,6.8245,146.53,146.43,62.14445137]
[1726806344179,6.8245,146.53,146.33,0.4958093]
[1726806344180,341.5759251,146.45,146.33,0.4958093]
[1726806344383,341.5759251,146.45,146.31,50.0]
[1726806344384,358.6467251,146.45,146.31,50.0]
[1726806344589,17.0708,146.45,146.31,50.0]
[1726806344793,341.5759251,146.51,146.33,50.0]
[1726806344794,6.8295,146.43,146.33,50.0]
[1726806345033,17.0661,146.49,146.33,50.0]
[1726806345178,6.8305,146.41,146.32,6.834]
[1726806345578,6.8299,146.42,146.33,6.8336]
[1726806345799,6.8304,146.41,146.33,6.8336]
[1726806346397,0.12549,146.48,146.37,50.0]
[1726806346601,0.12549,146.48,146.42,6.8294]
[1726806346774,0.12549,146.48,146.39,101.06865301]
[1726806346981,6.8265,146.49,146.38,17.0788]
[1726806347194,0.4094158,146.52,146.42,6.8295]
[1726806347805,6.8261,146.5,146.43,30.605884]
[1726806347980,6.827,146.48,146.42,23.776884]
[1726806348193,6.8275,146.47,146.42,23.776884]
[1726806348393,0.12549,146.5,146.38,17.0788]
[1726806349021,6.828,146.46,146.38,17.0788]
[1726806349196,0.12549,146.5,146.38,17.0788]
[1726806350504,6.8283,146.45,146.39,23.776884]
[1726806350898,0.12549,146.5,146.39,23.776884]
[1726806351092,0.4094158,146.52,146.41,23.776884]
[1726806352323,0.37647,146.51,146.41,23.776884]
[1726806352691,6.8274,146.47,146.41,23.776884]
[1726806353322,6.8279,146.46,146.41,23.776884]
[1726806353527,6.8271,146.48,146.41,23.776884]
[1726806353817,6.8274,146.47,146.41,23.776884]
[1726806355007,6.8274,146.47,146.41,30.606884]
[1726806356139,0.37647,146.51,146.41,23.776884]
[1726806356296,6.8276,146.47,146.41,23.776884]
[1726806357043,34.04897158,146.87,146.73,15.2917]
[1726806357240,387.6075993,146.89,146.82,50.0]
[1726806357241,0.6193892,146.88,146.82,50.0]
[1726806357523,353.22939303,146.89,146.73,15.2917]
[1726806357524,353.22939303,146.89,146.85,17.0241]
[1726806357703,353.22939303,146.89,146.81,23.776884]
[1726806357899,353.22939303,146.89,146.68,101.06865301]
[1726806358099,353.22939303,146.89,146.66,17.0461]
[1726806358300,10.39602782,146.88,146.65,23.776884]
[1726806358511,360.99066904,146.89,146.75,8.14980606]
[1726806358706,360.99066904,146.89,146.78,8.14980606]
[1726806358903,367.49179043,146.89,146.79,23.82351733]
[1726806359104,15.93169826,146.88,146.8,15.66633396]
[1726806359327,15.93169826,146.88,146.81,15.66343263]
[1726806359517,15.93169826,146.88,146.69,17.0423]
[1726806359705,6.8131,146.78,146.67,6.8178]
[1726806359906,6.8131,146.78,146.69,23.776884]
[1726806360218,6.8126,146.79,146.69,23.776884]
[1726806360408,17.0245,146.85,146.69,23.776884]
[1726806360409,6.8121,146.8,146.69,23.776884]
[1726806360612,17.0245,146.85,146.7,6.8163]
[1726806360799,6.8117,146.81,146.72,23.776884]
[1726806361003,6.8117,146.81,146.73,23.776884]
[1726806361202,6.8117,146.81,146.69,23.776884]
[1726806361203,17.0236,146.86,146.69,23.776884]
[1726806361405,6.8135,146.77,146.69,23.776884]
[1726806361820,6.814,146.76,146.69,23.776884]
[1726806362025,6.8145,146.75,146.66,26.8184]
[1726806362212,6.8149,146.74,146.66,6.8182]
[1726806362408,6.8131,146.78,146.68,6.8174]
[1726806362608,34.0515,146.84,146.67,17.0444]
[1726806362821,6.812,146.8,146.71,6.8159]
[1726806363028,6.8126,146.79,146.71,6.8159]
[1726806363326,6.8141,146.76,146.67,17.0444]
[1726806363541,17.027,146.83,146.69,23.776884]
[1726806363825,17.027,146.83,146.68,20.0]
[1726806363826,6.8145,146.75,146.68,20.0]
[1726806364230,17.027,146.83,146.68,20.0]
[1726806364439,17.027,146.83,146.65,101.06865301]
[1726806364440,17.0211,146.88,146.72,20.0]
[1726806364723,6.8126,146.79,146.72,20.0]
[1726806365307,6.8131,146.78,146.72,20.0]
[1726806365634,6.8134,146.77,146.72,20.0]
[1726806365804,17.0256,146.84,146.72,20.0]
[1726806365805,6.8126,146.79,146.72,20.0]
[1726806366428,6.8117,146.81,146.73,23.776884]
[1726806366968,6.8121,146.8,146.73,23.776884]
[1726806367230,6.8126,146.79,146.72,26.8153]
[1726806368219,17.0256,146.84,146.73,23.776884]
[1726806368532,17.0256,146.84,146.71,17.0397]
[1726806368731,6.8136,146.77,146.71,17.0397]
[1726806369944,6.8136,146.77,146.72,23.776884]
[1726806370112,6.8126,146.79,146.72,23.776884]
[1726806371327,0.12549,146.8,146.67,17.0445]
[1726806371534,0.37647,146.79,146.69,23.776884]
[1726806371829,6.8149,146.74,146.69,23.776884]
[1726806372034,6.8142,146.76,146.68,26.8174]
[1726806373351,0.37647,146.79,146.69,23.776884]
[1726806373551,6.8133,146.78,146.73,23.776884]
[1726806374232,17.0258,146.84,146.74,20.0]
[1726806374435,17.0258,146.84,146.75,23.776884]
[1726806374436,6.8115,146.81,146.75,23.776884]
[1726806374639,6.812,146.8,146.75,23.776884]
[1726806375420,6.8125,146.79,146.73,17.0376]
[1726806375849,6.8125,146.79,146.74,23.776884]
[1726806376348,17.0258,146.84,146.7,6.8164]
[1726806376349,6.8139,146.76,146.7,6.8164]
[1726806376560,6.8143,146.75,146.69,23.8589]
[1726806376919,6.8138,146.77,146.7,6.8165]
[1726806377231,0.12549,146.83,146.72,17.0387]
[1726806377445,6.8125,146.79,146.72,17.0387]
[1726806377627,17.15329,146.82,146.68,17.0433]
[1726806377955,0.12549,146.81,146.7,6.8165]
[1726806378349,0.12549,146.81,146.71,17.0402]
[1726806378539,6.8135,146.77,146.72,6.8156]
[1726806378847,6.814,146.76,146.71,17.0402]
[1726806379926,6.8144,146.75,146.7,6.8166]
[1726806380359,6.8144,146.75,146.7,20.0]
[1726806380857,0.12549,146.8,146.7,20.0]
[1726806381044,6.8138,146.76,146.71,30.592984]
[1726806381553,6.8138,146.76,146.71,23.776884]
[1726806382247,6.8143,146.75,146.7,26.8166]
[1726806382461,0.25098,146.81,146.7,23.776884]
[1726806382462,0.25098,146.78,146.7,23.776884]
[1726806382930,6.8148,146.74,146.7,23.776884]
[1726806384953,6.8148,146.74,146.69,23.8585]
[1726806384954,0.37647,146.78,146.61,39.86302305]
[1726806385169,0.37647,146.7,146.6,0.8231111]
[1726806385453,6.8199,146.63,146.55,23.776884]
[1726806385635,6.8199,146.63,146.53,50.0]
[1726806386029,6.8199,146.63,146.57,23.8778]
[1726806386246,6.8199,146.63,146.58,6.8221]
[1726806386446,6.8199,146.63,146.57,17.0556]
[1726806386447,6.8199,146.63,146.57,23.8782]
[1726806386637,6.8204,146.62,146.57,23.878]
[1726806386843,6.8199,146.63,146.57,17.0556]
[1726806387156,6.8199,146.63,146.57,23.8782]
[1726806387333,6.8193,146.65,146.6,6.8211]
[1726806387536,24.027864,146.69,146.61,8.1845081]
[1726806387737,24.027864,146.69,146.61,6.8206]
[1726806388052,0.12549,146.7,146.61,23.776884]
[1726806388353,6.818,146.68,146.61,30.597184]
[1726806388548,17.16739,146.7,146.61,20.0]
[1726806389132,6.8184,146.67,146.61,26.8207]
[1726806389754,17.16739,146.7,146.61,26.8207]
[1726806389755,24.027864,146.69,146.61,20.0]
[1726806390139,6.8212,146.61,146.55,17.058]
[1726806390450,0.12549,146.66,146.58,6.822]
[1726806390634,6.8201,146.63,146.58,6.822]
[1726806390833,6.8204,146.62,146.57,6.8226]
[1726806391050,6.8199,146.63,146.58,6.8221]
[1726806391359,0.12549,146.63,146.54,6.8239]
[1726806391533,6.8213,146.6,146.56,7.4424892]
[1726806391733,0.37647,146.66,146.56,0.6193892]
[1726806391932,6.8203,146.62,146.57,6.8222]
[1726806392553,0.37647,146.66,146.56,20.6193892]
[1726806392554,6.8213,146.6,146.56,20.6193892]
[1726806393265,6.8226,146.57,146.56,0.6193892]
[1726806394841,24.153354,146.62,146.56,0.6193892]
[1726806395035,50.9237001,146.61,146.56,0.6193892]
[1726806395549,6.8226,146.58,146.56,0.6193892]
[1726806395739,6.8226,146.57,146.56,0.6193892]
[1726806396357,6.8223,146.58,146.56,0.6193892]
[1726806396562,6.8224,146.58,146.56,0.6193892]
[1726806397763,85.0193001,146.65,146.56,0.6193892]
[1726806397764,50.9237001,146.65,146.56,0.6193892]
[1726806398057,6.8203,146.62,146.57,6.8225]
[1726806398442,50.9237001,146.65,146.58,6.8221]
[1726806398764,6.8205,146.62,146.57,6.8226]
[1726806398937,6.8198,146.63,146.58,6.8221]
[1726806399336,6.8203,146.62,146.58,6.8221]
[1726806399564,34.0776,146.73,146.59,20.0]
[1726806399565,50.9237001,146.68,146.59,20.0]
[1726806399733,6.8185,146.66,146.61,6.8208]
[1726806399936,6.8191,146.65,146.6,17.052]
[1726806400158,6.8185,146.66,146.61,6.8207]
[1726806400356,34.0776,146.73,146.63,6.8194]
[1726806400357,6.8179,146.68,146.63,6.8194]
[1726806400860,17.0384,146.73,146.62,17.0499]
[1726806401051,17.0414,146.71,146.59,37.0542]
[1726806401458,6.82,146.63,146.59,37.0542]
[1726806401751,6.8194,146.65,146.59,6.8217]
[1726806401952,6.8189,146.65,146.6,6.8212]
[1726806402169,50.9237001,146.67,146.59,23.8758]
[1726806402170,6.8195,146.64,146.59,23.8758]
[1726806402846,6.8198,146.63,146.59,17.0543]
[1726806403044,6.8204,146.62,146.57,26.8226]
[1726806403761,6.8204,146.62,146.57,26.8225]
[1726806404665,6.8213,146.6,146.56,0.6193892]
[1726806404869,6.8213,146.6,146.56,20.6193892]
[1726806405166,6.8213,146.6,146.56,7.4424892]
[1726806405365,6.8217,146.59,146.56,0.6193892]
[1726806406349,6.8226,146.58,146.56,0.6193892]
[1726806406952,24.027864,146.61,146.56,0.6193892]
[1726806406953,6.8226,146.57,146.56,0.6193892]
[1726806409450,30.975954,146.57,146.56,0.6193892]
[1726806409861,6.8226,146.57,146.56,0.6193892]
[1726806411448,6.8212,146.6,146.56,0.6193892]
[1726806411648,50.9237001,146.64,146.56,0.6193892]
[1726806412167,6.8213,146.6,146.56,0.6193892]
[1726806412367,50.9237001,146.64,146.56,0.6193892]
[1726806412857,6.8218,146.59,146.56,0.6193892]
[1726806413064,6.8222,146.58,146.56,0.6193892]
[1726806413388,6.8221,146.59,146.56,0.6193892]
[1726806414676,6.8222,146.58,146.56,0.6193892]
[1726806415054,6.8226,146.57,146.56,0.6193892]
[1726806417387,6.8211,146.61,146.56,7.4423892]
[1726806417566,6.8215,146.6,146.56,0.6193892]
[1726806417880,67.9727001,146.64,146.56,0.6193892]
[1726806417881,6.8217,146.59,146.56,0.6193892]
[1726806418584,67.9727001,146.64,146.56,0.6193892]
[1726806418753,0.12549,146.63,146.56,0.6193892]
[1726806418953,24.153354,146.63,146.56,0.6193892]
[1726806419154,6.8207,146.62,146.57,6.8222]
[1726806419568,6.8209,146.61,146.57,6.8222]
[1726806419792,50.9237001,146.64,146.57,17.056]
[1726806419979,6.8209,146.61,146.57,23.8785]
[1726806420284,6.8209,146.61,146.57,17.056]
[1726806422262,6.8222,146.59,146.56,0.7054146]
[1726806423163,67.9763001,146.61,146.56,0.7054146]
[1726806423470,6.8223,146.58,146.56,0.7054146]
[1726806423662,6.8226,146.57,146.56,0.7054146]
[1726806428860,7.07358,146.57,146.56,0.7054146]
[1726806430986,62.32226612,146.57,146.56,0.7054146]
[1726806431474,62.32226612,146.57,146.56,0.45254952]
[1726806431676,30.975954,146.57,146.56,0.19968444]
[1726806433464,30.975954,146.57,146.56,0.13646817]
[1726806433667,6.94809,146.57,146.56,0.13646817]
[1726806435788,20.5,146.64,146.56,0.13646817]
[1726806435789,17.0515,146.62,146.56,0.13646817]
[1726806436001,82.48921212,146.65,146.56,0.13646817]
[1726806436293,6.8213,146.6,146.56,0.13646817]
[1726806437892,6.8225,146.58,146.56,0.13646817]
[1726806438068,6.8218,146.59,146.56,0.13646817]
[1726806438493,0.25098,146.61,146.56,0.13646817]
[1726806438674,6.8223,146.58,146.56,0.13646817]
[1726806439194,6.8226,146.57,146.56,0.13646817]
[1726806440080,6.8226,146.58,146.56,0.13646817]
[1726806440592,6.8218,146.59,146.56,0.13646817]
[1726806441806,0.25098,146.61,146.56,0.13646817]
[1726806441807,6.8226,146.57,146.56,0.13646817]
[1726806442791,7.07358,146.57,146.56,0.13646817]
[1726806444381,7.07358,146.57,146.5,0.48236469]
[1726806444382,6.8241,146.54,146.5,0.48236469]
[1726806444587,6.8241,146.54,146.5,0.60062277]
[1726806445391,6.8251,146.52,146.5,0.60062277]
[1726806446285,6.8254,146.52,146.5,0.60062277]
[1726806446592,6.825,146.52,146.5,0.60062277]
[1726806448495,0.25098,146.55,146.5,0.60062277]
[1726806448496,6.8254,146.51,146.5,0.60062277]
[1726806449589,6.825,146.52,146.5,0.60062277]
[1726806449786,0.25098,146.55,146.5,0.60062277]
[1726806449987,6.8249,146.53,146.5,0.60062277]
[1726806450296,6.8252,146.52,146.5,0.60062277]
[1726806450477,6.8245,146.54,146.5,0.60062277]
[1726806452281,6.8251,146.52,146.5,0.60062277]
[1726806452487,54.6042,146.61,146.5,0.60062277]
[1726806452488,6.8254,146.51,146.5,0.60062277]
[1726806453696,6.825,146.52,146.5,0.60062277]
[1726806455094,6.8254,146.51,146.5,0.60062277]
[1726806458484,30.853264,146.51,146.5,0.60062277]
[1726806458890,30.978754,146.51,146.5,0.60062277]
[1726806459289,6.8254,146.51,146.5,0.60062277]
[1726806459778,7.07638,146.51,146.5,0.60062277]
[1726806460185,30.978754,146.51,146.5,0.60062277]
[1726806462078,17.0636,146.52,146.5,0.60062277]
[1726806462079,6.825,146.52,146.5,0.60062277]
[1726806462308,6.8246,146.53,146.5,0.60062277]
[1726806462589,89.36957981,146.61,146.5,0.60062277]
[1726806462799,6.8254,146.51,146.5,0.60062277]
[1726806463401,30.602284,146.51,146.5,0.60062277]
[1726806463581,6.8254,146.51,146.5,0.60062277]
[1726806464706,30.978754,146.51,146.5,0.60062277]
[1726806466787,30.978754,146.51,146.5,0.60062277]
[1726806470412,41.20851004,146.61,146.5,0.60062277]
[1726806470413,17.0546,146.59,146.5,17.66472277]
[1726806470596,28.6982,146.65,146.52,6.8249]
[1726806470924,28.6982,146.65,146.54,17.0591]
[1726806471208,6.823,146.57,146.52,6.8248]
[1726806471403,20.5,146.63,146.5,27.66542277]
[1726806471587,6.8241,146.54,146.5,27.66542277]
[1726806471787,6.8236,146.55,146.5,34.49122277]
[1726806472206,6.8236,146.55,146.51,6.8253]
[1726806472395,6.8231,146.56,146.51,6.8253]
[1726806475215,6.8231,146.56,146.5,44.72952277]
[1726806475216,0.25098,146.58,146.5,44.72952277]
[1726806475709,6.8227,146.57,146.52,6.825]
[1726806476319,0.25098,146.58,146.5,0.60062277]
[1726806476525,6.8254,146.51,146.5,0.60062277]
[1726806476695,6.825,146.52,146.5,0.60062277]
[1726806476895,0.12549,146.55,146.5,0.60062277]
[1726806477207,6.8254,146.51,146.5,0.60062277]
[1726806477990,0.25098,146.56,146.5,0.60062277]
[1726806478208,6.8246,146.53,146.5,0.60062277]
[1726806479122,23.776884,146.57,146.5,0.60062277]
[1726806479314,6.8246,146.53,146.5,0.60062277]
[1726806480627,6.8254,146.51,146.5,0.66408827]
[1726806481133,30.978754,146.51,146.5,0.66408827]
[1726806481499,7.07638,146.51,146.5,0.66408827]
[1726806481714,6.8254,146.51,146.5,0.66408827]
[1726806482101,20.0,146.57,146.5,0.66408827]
[1726806482314,6.8242,146.54,146.5,0.66408827]
[1726806482501,17.0711,146.66,146.5,0.66408827]
[1726806482502,17.0525,146.61,146.5,0.66408827]
[1726806482712,17.0525,146.61,146.52,17.0616]
[1726806483123,6.8232,146.56,146.52,17.0616]
[1726806483825,17.0525,146.61,146.52,17.0616]
[1726806483826,6.8223,146.58,146.53,6.8244]
[1726806484002,6.8223,146.58,146.52,23.8865]
[1726806484201,6.8223,146.58,146.53,6.8244]
[1726806484613,6.8217,146.6,146.54,6.8239]
[1726806484820,51.1459,146.64,146.54,6.8239]
[1726806485101,6.8222,146.58,146.53,18.0288]
[1726806485333,6.8222,146.58,146.53,11.2044]
[1726806487328,6.8222,146.58,146.53,18.0288]
[1726806488629,6.8232,146.56,146.53,11.2044]
[1726806489124,6.8227,146.57,146.53,11.2044]
[1726806489826,17.0539,146.6,146.53,11.2044]
[1726806490004,24.153354,146.59,146.5,0.66408827]
[1726806490203,6.8249,146.53,146.5,0.66408827]
[1726806491238,37.0564,146.58,146.5,0.66408827]
[1726806491239,20.0,146.58,146.5,0.66408827]
[1726806491622,0.12549,146.58,146.51,17.063]
[1726806491819,6.8227,146.57,146.52,6.8249]
[1726806492239,6.8231,146.56,146.52,6.8249]
[1726806493323,6.8231,146.56,146.51,23.8883]
[1726806495532,6.824,146.55,146.51,17.063]
[1726806495940,17.0548,146.59,146.5,0.66408827]
[1726806496246,6.8254,146.51,146.5,0.66408827]
[1726806498633,6.825,146.52,146.5,0.66408827]
[1726806498834,17.18389,146.56,146.5,0.66408827]
[1726806498835,6.8254,146.51,146.5,0.66408827]
[1726806499351,6.8273,146.47,146.46,0.263905]
[1726806500751,0.12549,146.51,146.46,0.263905]
[1726806500928,0.12549,146.52,146.46,0.263905]
[1726806501118,6.8272,146.48,146.46,0.263905]
[1726806501547,24.027864,146.52,146.46,0.263905]
[1726806502422,0.25098,146.51,146.46,0.263905]
[1726806502731,6.8273,146.47,146.46,0.263905]
[1726806503231,0.12549,146.51,146.46,0.263905]
[1726806503442,6.95149,146.5,146.46,0.263905]
[1726806503746,6.8255,146.51,146.46,7.091405]
[1726806504137,6.8251,146.52,146.47,6.8273]
[1726806504441,51.1742,146.56,146.48,8.1919638]
[1726806504442,6.8246,146.53,146.48,8.1919638]
[1726806504644,6.8246,146.53,146.49,1.3650257]
[1726806505022,6.8246,146.53,146.48,6.8268]
[1726806505923,6.8241,146.54,146.49,6.8263]
[1726806506154,34.107,146.6,146.48,17.0661]
[1726806506351,6.8222,146.58,146.51,17.0634]
[1726806506524,6.8222,146.58,146.52,11.3775]
[1726806506723,6.8222,146.58,146.52,18.2024]
[1726806507450,17.0531,146.61,146.52,11.3775]
[1726806507629,6.8231,146.57,146.52,18.2024]
[1726806507952,6.8231,146.57,146.52,11.3775]
[1726806508460,34.0974,146.64,146.52,11.3775]
[1726806508636,0.12549,146.61,146.52,11.3775]
[1726806508948,6.8198,146.64,146.58,6.8218]
[1726806511139,0.263905,146.67,146.6,6.8212]
[1726806511666,6.8193,146.65,146.59,6.8217]
[1726806512925,0.263905,146.67,146.58,20.0]
[1726806513127,17.309805,146.67,146.57,17.0564]
[1726806513351,20.0,146.66,146.57,17.0564]
[1726806514229,6.8208,146.61,146.57,17.0564]
[1726806514429,20.0,146.66,146.58,6.822]
[1726806514632,6.8202,146.63,146.58,6.822]
[1726806514953,6.8202,146.63,146.58,6.8222]
[1726806515155,7.084205,146.62,146.57,17.0564]
[1726806515735,7.084205,146.62,146.57,23.8789]
[1726806516146,6.8212,146.61,146.57,17.0564]
[1726806516755,0.263905,146.62,146.54,26.6393]
[1726806517070,0.263905,146.62,146.56,20.0]
[1726806517264,7.084605,146.62,146.57,6.8225]
[1726806518132,6.8208,146.61,146.56,6.823]
[1726806518550,6.8213,146.6,146.56,6.823]
[1726806518753,6.8209,146.61,146.56,6.823]
[1726806519230,0.263905,146.62,146.55,26.8235]
[1726806519431,0.263905,146.62,146.55,20.0]
[1726806519741,0.263905,146.62,146.55,26.8235]
[1726806519742,6.8213,146.6,146.55,26.8235]
[1726806522078,0.263905,146.62,146.55,43.902374]
[1726806522255,0.263905,146.62,146.58,6.822]
[1726806522558,0.263905,146.62,146.56,17.18239]
[1726806523346,0.263905,146.62,146.58,6.8221]
[1726806524242,0.263905,146.62,146.59,6.8216]
[1726806524742,0.263905,146.62,146.58,23.8769]
[1726806526357,0.263905,146.62,146.59,6.8216]
[1726806526737,0.263905,146.62,146.61,6.8208]
[1726806529046,0.263905,146.62,146.6,23.8737]
[1726806529240,0.263905,146.62,146.6,17.0525]
[1726806529444,0.263905,146.62,146.6,23.8736]
[1726806530463,0.263905,146.62,146.6,17.0525]
[1726806530663,0.263905,146.62,146.61,30.848664]
[1726806532052,0.263905,146.62,146.61,50.974154]
[1726806532844,0.263905,146.62,146.61,50.848664]
[1726806534580,0.263905,146.62,146.61,52.33776301]
[1726806534766,0.263905,146.62,146.61,50.974154]
[1726806535353,0.263905,146.62,146.61,82.81583777]
[1726806535665,0.263905,146.67,146.66,68.017954]
[1726806535867,0.263905,146.67,146.66,88.9452496]
[1726806536373,0.263905,146.67,146.66,87.58227102]
[1726806537865,0.263905,146.67,146.66,68.017954]
[1726806540349,0.263905,146.67,146.66,23.8646]
[1726806541269,6.8811799,146.73,146.68,6.8175]
[1726806541476,0.3561091,146.71,146.68,6.8175]
[1726806541644,0.3561091,146.71,146.69,6.8169]
[1726806541847,0.3561091,146.71,146.68,23.8607]
[1726806542469,0.3561091,146.71,146.68,17.0432]
[1726806543374,0.3561091,146.71,146.68,23.8607]
[1726806543579,0.3561091,146.71,146.69,6.8168]
[1726806547061,0.3561091,146.71,146.7,6.8166]
[1726806547262,0.3561091,146.71,146.7,8.17951271]
[1726806547480,0.3561091,146.71,146.7,32.20737671]
[1726806547979,0.3561091,146.71,146.7,63.53496671]
[1726806548180,0.3561091,146.71,146.7,62.172054]
[1726806549056,0.0658799,146.73,146.72,78.30987]
[1726806549249,0.2603928,146.76,146.72,78.30987]
[1726806549250,0.2603928,146.76,146.75,77.19077]
[1726806549462,0.2603928,146.76,146.75,68.003354]
[1726806551852,0.2603928,146.76,146.73,6.8148]
[1726806552155,0.2603928,146.76,146.74,6.8147]
[1726806552356,0.2603928,146.76,146.72,23.8543]
[1726806552560,0.2603928,146.76,146.72,23.8546]
[1726806553062,0.2603928,146.76,146.7,18.0187]
[1726806553063,6.8143,146.75,146.7,18.0187]
[1726806553249,7.0742928,146.76,146.71,6.816]
[1726806553655,6.8144,146.75,146.7,18.0186]
[1726806553870,6.8144,146.75,146.71,6.8161]
[1726806554079,0.2603928,146.76,146.72,8.17820964]
[1726806554375,0.2603928,146.76,146.72,6.8155]
[1726806556562,6.8151,146.74,146.69,6.817]
[1726806556772,6.8151,146.74,146.7,6.8165]
[1726806556969,6.8151,146.74,146.69,26.817]
[1726806557153,6.8153,146.73,146.69,6.817]
[1726806557572,0.2603928,146.76,146.68,23.8611]
[1726806558659,6.8153,146.73,146.68,23.8611]
[1726806558860,6.8153,146.73,146.69,6.817]
[1726806559611,6.8148,146.74,146.69,6.817]
[1726806560270,6.8143,146.75,146.7,6.8166]
[1726806561479,0.2603928,146.76,146.7,0.12549]
[1726806561691,0.2603928,146.76,146.73,6.8148]